fUSD/lending_fUSD_20260122
["ID","MTS","AMOUNT","RATE_DAILY","PERIOD"]
[403023485,1769079041239,-250.0,0.00019386,2]
[403023486,1769079041249,-500.0,0.00019386,2]
[403023487,1769079041260,-250.0,0.00019386,2]
[403023488,1769079041270,-250.0,0.00019386,2]
[403023489,1769079041280,-172.38117246,0.00019386,2]
[403023490,1769079041290,-276.40674304,0.00019386,2]
[403023491,1769079041300,-823.77908852,0.00019386,2]
[403023492,1769079041310,-500.0,0.00019386,2]
[403023493,1769079041319,-488.78638973,0.00019386,2]
[403023494,1769079041329,-322.6107,0.00019386,2]
[403023495,1769079041338,-151.0,0.00019386,2]
[403023496,1769079041348,-151.0,0.00019386,2]
[403023497,1769079041357,-151.0,0.00019386,2]
[403023498,1769079041371,-151.0,0.00019386,2]
[403023499,1769079041380,-151.0,0.00019386,2]
[403023500,1769079041390,-151.0,0.00019386,2]
[403023501,1769079041400,-151.0,0.00019386,2]
[403023502,1769079041410,-151.0,0.00019386,2]
[403023503,1769079041419,-151.0,0.00019386,2]
[403023504,1769079041428,-151.0,0.00019386,2]
[403023505,1769079041439,-151.0,0.00019386,2]
[403023506,1769079041448,-151.0,0.00019386,2]
[403023507,1769079041458,-1061.23,0.00019419,2]
[403023508,1769079041467,-9000.0,0.00019441,2]
[403023509,1769079041477,-200.0,0.00019452,5]
[403023510,1769079041487,-615.93,0.00019461,2]
[403023511,1769079041496,-9000.0,0.00019496,2]
[403023512,1769079041507,-176.58,0.000195,2]
[403023513,1769079041516,-239.0,0.00019526,2]
[403023514,1769079041526,-239.0,0.00019545,2]
[403023515,1769079041536,-9000.0,0.00019551,2]
[403023516,1769079041545,-166.66,0.00019555,2]
[403023517,1769079041554,-168.0,0.00019579,2]
[403023518,1769079041564,-506.0,0.000196,2]
[403023519,1769079041573,-300.45,0.00019726,5]
[403023520,1769079041583,-8074.72496751,0.00019789,2]
[403023521,1769079041592,-2351.0,0.00019789,2]
[403023522,1769079041602,-155.0,0.00019799,2]
[403023523,1769079041611,-151.3,0.0001984,2]
[403023524,1769079041621,-4253.0,0.00019847,2]
[403023525,1769079041630,-3671.42970232,0.0001985,2]
[403023526,1769079041639,-153.77419055,0.0001985,2]
[403023527,1769079041648,-1005.2389488,0.00019864,2]
[403023528,1769079041658,-457.22,0.000199,2]
[403023529,1769079041667,-9000.0,0.000199,7]
[403023530,1769079041677,-3468.9,0.00019903,2]
[403023531,1769079041686,-604.60838265,0.00019934,2]
[403023532,1769079041696,-1926.4181119,0.0001994,2]
[403023533,1769079041706,-151.3,0.0001994,2]
[403023534,1769079041715,-162309.02028933,0.0001995,15]
[403023535,1769079041724,-151.0,0.0001995,2]
[403023536,1769079041733,-151.0,0.0001995,2]
[403023537,1769079041745,-151.0,0.0001995,2]
[403023538,1769079041755,-176.855016,0.0001995,2]
[403023539,1769079041764,-151.0,0.0001995,2]
[403023540,1769079041774,-150.0,0.0001995,2]
[403023541,1769079041783,-573.952439,0.0001995,2]
[403023542,1769079041792,-573.952439,0.0001995,2]
[403023543,1769079041801,-573.952439,0.0001995,2]
[403023544,1769079041811,-573.952439,0.0001995,2]
[403023545,1769079041821,-155.264646,0.0001995,2]
[403023546,1769079041831,-151.3,0.0001999,2]
[403023547,1769079041840,-4000.0,0.0002,2]
[403023548,1769079041850,-1532.52523808,0.0002,2]
[403023549,1769079041859,-25582.11960735,0.0002,2]
[403023550,1769079041868,-300.0,0.0002,5]
[403023551,1769079041878,-300.0,0.0002,5]
[403023552,1769079041887,-283.0,0.0002,5]
[403023553,1769079041897,-150.0,0.0002,2]
[403023554,1769079041907,-238.3048284,0.0002,2]
[403023555,1769079041916,-13154.20692119,0.00020105,2]
[403023556,1769079041926,-6753.86164307,0.00020152,2]
[403023557,1769079041936,-503.44696293,0.00020156,2]
[403023558,1769079041945,-172.49,0.00020274,2]
[403023559,1769079041954,-527.1,0.00020342,2]
[403023560,1769079041965,-200.0,0.00020358,2]
[403023561,1769079041975,-615.93,0.00020387,2]
[403023562,1769079041984,-186.86,0.00020406,2]
[403023563,1769079041994,-176.58,0.00020429,2]
[403023564,1769079042003,-1000.0,0.00020457,2]
[403023565,1769079042013,-300.0,0.00020548,5]
[403023566,1769079042022,-300.0,0.00020548,5]
[403023567,1769079042031,-154.15,0.00020548,2]
[403023568,1769079042042,-176.505647,0.00020548,2]
[403023569,1769079042052,-176.505647,0.00020548,2]
[403023570,1769079042064,-176.505647,0.00020548,2]
[403023571,1769079042074,-176.505647,0.00020548,2]
[403023572,1769079042083,-176.505647,0.00020548,2]
[403023573,1769079042093,-176.505647,0.00020548,2]
[403023574,1769079042104,-176.505647,0.00020548,2]
[403023575,1769079042115,-176.505647,0.00020548,2]
[403023576,1769079042125,-176.505647,0.00020548,2]
[403023577,1769079042137,-176.505647,0.00020548,2]
[403023578,1769079042147,-176.505647,0.00020548,2]
[403023579,1769079042156,-176.505647,0.00020548,2]
[403023580,1769079042166,-150.0,0.000206,7]
[403023581,1769079042176,-8074.72496751,0.00020641,2]
[403023582,1769079042186,-1822.72110573,0.00020693,2]
[403023583,1769079042197,-172.47,0.00020773,2]
[403023584,1769079042207,-559.98,0.00020792,2]
[403023585,1769079042216,-2036.91,0.00020951,2]
[403023586,1769079042225,-222.99,0.00020951,2]
[403023587,1769079042235,-762.09,0.0002099,2]
[403023588,1769079042244,-13154.20692119,0.00021066,2]
[403023589,1769079042254,-559.98,0.00021066,2]
[403023590,1769079042263,-500.0,0.00021253,2]
[403023591,1769079042273,-762.09,0.00021264,2]
[403023592,1769079042283,-615.93,0.00021314,2]
[403023593,1769079042293,-1771.6842,0.00021327,7]
[403023594,1769079042302,-559.98,0.0002134,2]
[403023595,1769079042312,-176.58,0.00021358,2]
[403023596,1769079042321,-151.3,0.0002136,2]
[403023597,1769079042331,-151.3,0.0002136,2]
[403023598,1769079042340,-110295.9553792,0.0002137,2]
[403023599,1769079042350,-22181.986477,0.0002137,2]
[403023600,1769079042359,-1332.0,0.00021381,2]
[403023602,1769079042368,-3474.0,0.00021381,2]
[403023604,1769079042378,-615.0,0.00021381,2]
[403023605,1769079042387,-1407.0,0.00021381,2]
[403023606,1769079042397,-276.0,0.00021381,2]
[403023607,1769079042406,-1268.0,0.00021381,2]
[403023608,1769079042415,-915.0,0.00021381,2]
[403023609,1769079042424,-6565.0,0.00021381,2]
[403023610,1769079042434,-2441.0,0.00021381,2]
[403023611,1769079042443,-567.0,0.00021381,2]
[403023612,1769079042452,-151.0,0.00021406,2]
[403023613,1769079042461,-151.0,0.00021406,2]
[403023614,1769079042470,-151.0,0.00021406,2]
[403023615,1769079042479,-150.039,0.00021477,2]
[403023616,1769079042488,-210.554,0.00021477,2]
[403023617,1769079042497,-250.0,0.00021477,2]
[403023618,1769079042507,-150.139,0.00021477,2]
[403023619,1769079042516,-191.295,0.00021477,2]
[403023620,1769079042525,-164.101,0.00021477,2]
[403023621,1769079042534,-250.0,0.00021477,2]
[403023622,1769079042543,-212.373,0.00021477,2]
[403023623,1769079042554,-170.0,0.00021477,2]
[403023624,1769079042563,-230.574,0.00021477,2]
[403023626,1769079042572,-8074.72496751,0.00021492,2]
[403023628,1769079042583,-762.09,0.00021538,2]
[403023630,1769079042593,-155.0,0.00021599,2]
[403023632,1769079042602,-559.98,0.00021614,2]
[403023633,1769079042611,-307.12,0.0002166,2]
[403023634,1769079042621,-3292.0,0.00021736,2]
[403023635,1769079042631,-176.505647,0.00021902,2]
[403023636,1769079042642,-176.505647,0.00021902,2]
[403023637,1769079042651,-176.505647,0.00021902,2]
[403023638,1769079042660,-176.505647,0.00021902,2]
[403023639,1769079042670,-5000.0,0.00021918,2]
[403023640,1769079042679,-151.0,0.00021918,2]
[403023641,1769079042689,-151.0,0.00021918,2]
[403023642,1769079042698,-154.0,0.00021918,2]
[403023643,1769079042708,-154.0,0.00021918,2]
[403023644,1769079042718,-154.0,0.00021918,2]
[403023645,1769079042727,-154.0,0.00021918,2]
[403023646,1769079042736,-154.0,0.00021918,2]
[403023647,1769079042745,-154.0,0.00021918,2]
[403023648,1769079042825,-154.0,0.00021918,2]
[403023649,1769079042834,-154.0,0.00021918,2]
[403023650,1769079042843,-154.0,0.00021918,2]
[403023651,1769079042852,-154.0,0.00021918,2]
[403023652,1769079042861,-154.0,0.00021918,2]
[403023653,1769079042870,-249.98949767,0.00021918,2]
[403023654,1769079042879,-500.0,0.00021918,2]
[403023655,1769079042888,-500.0,0.00021973,2]
[403023656,1769079042897,-7822.21945204,0.00022,2]
[403023657,1769079042907,-145344.47,0.00022,2]
[403023658,1769079042916,-163.53,0.00022,2]
[403023659,1769079042925,-160.0,0.00022,2]
[403023660,1769079042934,-573.952439,0.00022,2]
[403023661,1769079042943,-573.952439,0.00022,2]
[403023662,1769079042952,-573.952439,0.00022,2]
[403023663,1769079042961,-573.952439,0.00022,2]
[403023665,1769079042970,-3468.9,0.00022004,2]
[403023667,1769079042978,-13154.20692119,0.00022026,2]
[403023669,1769079042987,-500.0,0.00022028,2]
[403023671,1769079042996,-500.0,0.00022082,2]
[403023673,1769079043005,-494.3716957,0.000221,2]
[403023675,1769079043013,-240.22289408,0.0002211,2]
[403023677,1769079043023,-364.96851401,0.00022116,2]
[403023679,1769079043032,-24610.3541874,0.00022123,2]
[403023680,1769079043040,-4949.470195,0.00022123,2]
[403023682,1769079043049,-548.00364651,0.00022137,2]
[403023684,1769079043060,-5973.954184,0.00022145,2]
[403023686,1769079043069,-172.49,0.00022168,2]
[403023687,1769079043078,-615.93,0.00022241,2]
[403023688,1769079043087,-500.0,0.00022243,2]
[403023689,1769079043096,-500.0,0.00022244,2]
[403023690,1769079043106,-500.0,0.00022245,2]
[403023691,1769079043114,-499.9999,0.00022246,2]
[403023692,1769079043123,-186.86,0.00022278,2]
[403023693,1769079043133,-176.58,0.00022286,2]
[403023694,1769079043142,-8074.72496751,0.00022344,2]
[403023695,1769079043152,-527.1,0.00022377,2]
[403023696,1769079043161,-35488.81033828,0.000225,2]
[403023697,1769079043170,-151.0,0.000225,2]
[403023698,1769079043179,-151.0,0.000225,2]
[403023699,1769079043188,-151.0,0.000225,2]
[403023700,1769079043198,-1000.0,0.00022503,2]
[403023701,1769079043207,-497.61922107,0.0002254,2]
[403023702,1769079043216,-656.35219057,0.0002254,2]
[403023703,1769079043225,-255.44823583,0.000226,2]
[403023704,1769079043235,-523.13162182,0.0002271,2]
[403023705,1769079043244,-200.0,0.00022816,2]
[403023706,1769079043253,-176.505647,0.00022837,2]
[403023707,1769079043263,-176.505647,0.00022837,2]
[403023708,1769079043272,-176.505647,0.00022837,2]
[403023709,1769079043281,-176.505653,0.00022837,2]
[403023710,1769079043290,-1000.0,0.00022839,2]
[403023711,1769079043300,-150.0,0.00022865,2]
[403023712,1769079043309,-223.85595231,0.00022874,2]
[403023713,1769079043318,-506.0,0.00022956,5]
[403023714,1769079043328,-13154.20692119,0.00022987,2]
[403023715,1769079043337,-99102.67805253,0.00023,2]
[403023716,1769079043355,-20686.95397101,0.00023,2]
[403023717,1769079043364,-1007.74389499,0.00023,2]
[403023718,1769079043374,-150.0,0.00023,2]
[403023719,1769079043383,-338.37879492,0.00023,2]
[403023720,1769079043392,-150.0,0.00023,2]
[403023721,1769079043401,-6052.4539225,0.00023,2]
[403023722,1769079043410,-150.0,0.00023,2]
[403023723,1769079043419,-1303.73725579,0.00023,2]
[403023724,1769079043428,-333.05051013,0.00023,2]
[403023725,1769079043437,-1332.9693538,0.00023071,2]
[403023726,1769079043446,-8074.72496751,0.00023196,2]
[403023727,1769079043455,-360.9545127,0.000232,2]
[403023728,1769079043464,-176.58,0.00023215,2]
[403023729,1769079043473,-300.0,0.00023287,2]
[403023730,1769079043482,-300.0,0.00023287,3]
[403023731,1769079043491,-299.09106416,0.00023287,4]
[403023732,1769079043500,-200.0,0.000235,2]
[403023733,1769079043509,-1269.92,0.00023559,2]
[403023734,1769079043518,-127017.69400353,0.000238,2]
[403023735,1769079043529,-1277.0,0.000238,2]
[403023736,1769079043539,-3619.89584989,0.000238,2]
[403023737,1769079043555,-13429.88014658,0.000238,2]
[403023738,1769079043563,-573.952439,0.000238,2]
[403023739,1769079043572,-573.952439,0.000238,2]
[403023740,1769079043581,-573.952439,0.000238,2]
[403023741,1769079043591,-573.952435,0.000238,2]
[403023742,1769079043600,-747.25053109,0.00023873,2]
[403023743,1769079043612,-999.0,0.00023873,2]
[403023744,1769079044043,-2862.74946891,0.00023873,2]
[403023745,1769079044052,-13154.20692119,0.00023947,2]
[403023746,1769079044066,-9402.46820328,0.00024,2]
[403023747,1769079044465,-7291.14228795,0.00024,2]
[403023748,1769079044475,-1021.18035545,0.00024,2]
[403023749,1769079044484,-3600.0,0.00024,2]
[403023750,1769079044493,-1234.97037023,0.00024,2]
[403023751,1769079044501,-8074.72496751,0.00024048,2]
[403023752,1769079044510,-1101.0,0.00024061,2]
[403023753,1769079044519,-3468.9,0.00024105,2]
[403023754,1769079044529,-176.58,0.00024143,2]
[403023755,1769079044538,-198.5825,0.0002415,2]
[403023756,1769079044547,-421.92043889,0.0002421,2]
[403023757,1769079044556,-3695.96314209,0.0002421,2]
[403023758,1769079044564,-1332.0,0.00024381,2]
[403023759,1769079044574,-3474.0,0.00024381,2]
[403023760,1769079044582,-615.0,0.00024381,2]
[403023761,1769079044591,-1407.0,0.00024381,2]
[403023762,1769079044600,-276.0,0.00024381,2]
[403023763,1769079044609,-1268.0,0.00024381,2]
[403023764,1769079044619,-6565.0,0.00024381,2]
[403023765,1769079044628,-2441.0,0.00024381,2]
[403023766,1769079044638,-567.0,0.00024381,2]
[403023767,1769079044647,-527.1,0.00024411,2]
[403023768,1769079044658,-150.0,0.00024477,2]
[403023769,1769079044668,-150.0,0.00024477,2]
[403023770,1769079044677,-150.0,0.00024477,2]
[403023771,1769079044687,-150.0,0.00024477,2]
[403023772,1769079044697,-150.33,0.00024505,30]
[403023773,1769079044706,-172.49,0.00024514,2]
[403023774,1769079044716,-1000.0,0.00024549,2]
[403023775,1769079044725,-597.51901762,0.0002465,2]
[403023776,1769079044734,-167.62349804,0.0002465,2]
[403023777,1769079044743,-158.0,0.00024658,2]
[403023778,1769079044751,-164.14720655,0.00024658,2]
[403023779,1769079044760,-158.0,0.00024658,2]
[403023780,1769079044770,-158.0,0.00024658,2]
[403023781,1769079044779,-158.0,0.00024658,2]
[403023782,1769079044788,-158.0,0.00024658,2]
[403023783,1769079044797,-158.0,0.00024658,2]
[403023784,1769079044805,-468.67,0.00024658,2]
[403023785,1769079044814,-1000.0,0.00024658,2]
[403023786,1769079044823,-150.0,0.00024658,2]
[403023787,1769079044832,-500.0,0.0002474,2]
[403023788,1769079044841,-186.86,0.00024767,2]
[403023789,1769079044850,-10000.0,0.00024773,2]
[403023790,1769079044860,-7873.89431668,0.000248,2]
[403023791,1769079044869,-612.57248496,0.00024873,2]
[403023792,1769079044878,-162.82329484,0.00024873,2]
[403023793,1769079044886,-500.0,0.00024873,2]
[403023794,1769079044895,-275.27105361,0.00024873,2]
[403023795,1769079044904,-500.0,0.00024873,2]
[403023796,1769079044914,-500.0,0.00024873,2]
[403023797,1769079044922,-500.73185414,0.00024873,2]
[403023798,1769079044932,-333.02451885,0.00024873,2]
[403023799,1769079044941,-483.22809932,0.00024873,2]
[403023800,1769079044950,-500.0,0.00024873,2]
[403023801,1769079044959,-500.0,0.00024873,2]
[403023802,1769079044968,-300.0,0.00024873,2]
[403023803,1769079044977,-500.0,0.00024873,2]
[403023804,1769079044986,-500.0,0.00024873,2]
[403023805,1769079044995,-900.0,0.00024873,2]
[403023806,1769079045004,-199.45810212,0.00024873,2]
[403023807,1769079045013,-500.0,0.00024873,2]
[403023808,1769079045022,-500.0,0.00024873,2]
[403023809,1769079045031,-500.0,0.00024873,2]
[403023810,1769079045040,-500.0,0.00024873,2]
[403023811,1769079045050,-159.8911399,0.00024873,2]
[403023812,1769079045061,-159.98843444,0.00024873,2]
[403023813,1769079045074,-500.0,0.00024873,2]
[403023814,1769079045085,-160.90753346,0.00024873,2]
[403023815,1769079045094,-500.0,0.00024873,2]
[403023816,1769079045104,-500.0,0.00024873,2]
[403023817,1769079045113,-157.27568763,0.00024873,2]
[403023818,1769079045122,-500.0,0.00024873,2]
[403023819,1769079045132,-500.0,0.00024873,2]
[403023820,1769079045141,-500.0,0.00024873,2]
[403023821,1769079045151,-500.0,0.00024873,2]
[403023822,1769079045161,-462.43406962,0.00024873,2]
[403023823,1769079045170,-500.0,0.00024873,2]
[403023824,1769079045179,-500.0,0.00024873,2]
[403023825,1769079045188,-374.48930581,0.00024873,2]
[403023826,1769079045199,-500.0,0.00024873,2]
[403023827,1769079045208,-500.0,0.00024873,2]
[403023828,1769079045217,-500.0,0.00024873,2]
[403023829,1769079045227,-500.6754429,0.00024873,2]
[403023830,1769079045236,-500.0,0.00024873,2]
[403023831,1769079045245,-500.0,0.00024873,2]
[403023832,1769079045255,-500.0,0.00024873,2]
[403023833,1769079045265,-500.0,0.00024873,2]
[403023834,1769079045274,-500.0,0.00024873,2]
[403023835,1769079045283,-500.0,0.00024873,2]
[403023836,1769079045292,-500.0,0.00024873,2]
[403023837,1769079045301,-500.0,0.00024873,2]
[403023838,1769079045311,-500.0,0.00024873,2]
[403023839,1769079045321,-500.69737352,0.00024873,2]
[403023840,1769079045332,-500.0,0.00024873,2]
[403023841,1769079045341,-500.0,0.00024873,2]
[403023842,1769079045350,-500.0,0.00024873,2]
[403023843,1769079045360,-150.0,0.00024873,2]
[403023844,1769079045369,-500.59798061,0.00024873,2]
[403023845,1769079045379,-500.0,0.00024873,2]
[403023846,1769079045388,-502.38789464,0.00024873,2]
[403023847,1769079045397,-500.0,0.00024873,2]
[403023848,1769079045407,-367.63794305,0.00024873,2]
[403023849,1769079045417,-500.0,0.00024873,2]
[403023850,1769079045426,-8074.72496751,0.000249,2]
[403023851,1769079045435,-436.20097186,0.000249,2]
[403023852,1769079045444,-13154.20692119,0.00024908,2]
[403023853,1769079045453,-150.0,0.00025,2]
[403023854,1769079045463,-16816.6183758,0.00025,2]
[403023855,1769079045473,-1111.61627567,0.00025,2]
[403023856,1769079045483,-207.09535416,0.00025,2]
[403023857,1769079045494,-1781.17447381,0.00025,2]
[403023858,1769079045503,-457.14538865,0.00025,2]
[403023859,1769079045513,-540.0,0.00025,2]
[403023860,1769079045523,-609.68121799,0.00025,2]
[403023861,1769079045532,-3038.19694165,0.00025,2]
[403023862,1769079045541,-7111.26794565,0.00025,2]
[403023863,1769079045551,-1062.46772816,0.00025,2]
[403023864,1769079045560,-166.98766582,0.00025,2]
[403023865,1769079045569,-176.58,0.00025072,2]
[403023866,1769079045578,-155.0,0.00025199,2]
[403023867,1769079045587,-2898.8,0.00025215,2]
[403023868,1769079045597,-1101.0,0.00025328,2]
[403023869,1769079045607,-186.85080251,0.00025383,2]
[403023870,1769079045616,-1000.0,0.00025421,2]
[403023871,1769079045628,-1000.0,0.00025421,2]
[403023872,1769079045637,-498.58711111,0.00025421,2]
[403023873,1769079045646,-1000.0,0.00025421,2]
[403023874,1769079045658,-1000.0,0.00025421,2]
[403023875,1769079045667,-417.4330643,0.00025421,2]
[403023876,1769079045676,-1000.0,0.00025421,2]
[403023877,1769079045685,-1000.0,0.00025421,2]
[403023878,1769079045695,-623.35028463,0.00025421,2]
[403023879,1769079045705,-1002.46584923,0.00025421,2]
[403023880,1769079045714,-1000.0,0.00025421,2]
[403023881,1769079045724,-1002.24752749,0.00025421,2]
[403023882,1769079045734,-1002.87171723,0.00025421,2]
[403023883,1769079045743,-1000.0,0.00025421,2]
[403023884,1769079045752,-1000.0,0.00025421,2]
[403023885,1769079045762,-1001.96093003,0.00025421,2]
[403023886,1769079045773,-1000.0,0.00025421,2]
[403023887,1769079045782,-1000.0,0.00025421,2]
[403023888,1769079045791,-1000.0,0.00025421,2]
[403023889,1769079045800,-1000.0,0.00025421,2]
[403023890,1769079045809,-1033.38340197,0.00025421,2]
[403023891,1769079045820,-333.41993856,0.00025421,2]
[403023892,1769079045831,-1000.0,0.00025421,2]
[403023893,1769079045840,-1000.0,0.00025421,2]
[403023894,1769079045849,-1000.0,0.00025421,2]
[403023895,1769079045858,-1000.0,0.00025421,2]
[403023896,1769079045868,-1000.0,0.00025421,2]
[403023897,1769079045878,-1001.67219541,0.00025421,2]
[403023898,1769079045888,-1000.0,0.00025421,2]
[403023899,1769079045897,-1000.0,0.00025421,2]
[403023900,1769079045908,-1000.0,0.00025421,2]
[403023901,1769079045918,-1002.87772388,0.00025421,2]
[403023902,1769079045927,-1000.0,0.00025421,2]
[403023903,1769079045936,-1000.0,0.00025421,2]
[403023904,1769079045945,-1000.0,0.00025421,2]
[403023905,1769079045954,-1000.0,0.00025421,2]
[403023906,1769079045963,-1000.0,0.00025421,2]
[403023907,1769079045972,-363.25784888,0.00025421,2]
[403023908,1769079045982,-1000.0,0.00025421,2]
[403023909,1769079045991,-1000.0,0.00025421,2]
[403023910,1769079046001,-1000.0,0.00025421,2]
[403023911,1769079046010,-145344.47,0.000255,2]
[403023912,1769079046020,-13154.20692119,0.00025868,2]
[403023913,1769079046030,-502.62229273,0.00025968,2]
[403023914,1769079046039,-501.84241194,0.00025968,2]
[403023915,1769079046048,-508.04350626,0.00025968,2]
[403023916,1769079046059,-503.04224684,0.00025968,2]
[403023917,1769079046070,-733.04355545,0.00025968,2]
[403023918,1769079046079,-1000.0,0.00025968,2]
[403023920,1769079046088,-1500.26993003,0.00025968,2]
[403023922,1769079046097,-505.03820151,0.00025968,2]
[403023924,1769079046107,-503.16106145,0.00025968,2]
[403023925,1769079046116,-503.18869933,0.00025968,2]
[403023926,1769079046134,-503.46671896,0.00025968,2]
[403023927,1769079046145,-499.68299492,0.00025968,2]
[403023928,1769079046155,-144.9023809,0.00025968,2]
[403023929,1769079047075,-360.17701078,0.00025968,2]
[403023930,1769079047084,-502.30396035,0.00025968,2]
[403023931,1769079047093,-502.0748997,0.00025968,2]
[403023932,1769079047113,-1500.0,0.00025968,2]
[403023933,1769079047128,-1505.62555191,0.00025968,2]
[403023934,1769079047139,-336.70188055,0.00025968,2]
[403024083,1769080231623,-500.0,0.00016457,2]
[403024084,1769080231633,-126.80201222,0.00016767,2]
[403024085,1769080231728,-23.19798778,0.00016767,2]
[403024086,1769080231737,-232.71626821,0.00016767,2]
[403024087,1769080231747,-500.0,0.00016767,2]
[403024088,1769080231756,-150.0,0.00016767,2]
[403024089,1769080231765,-150.0,0.00016767,2]
[403024090,1769080231774,-205.41720599,0.00016767,2]
[403024091,1769080231784,-200.85753101,0.00016767,2]
[403024092,1769080231793,-200.0,0.00016767,2]
[403024093,1769080231803,-500.0,0.00016767,2]
[403024094,1769080231812,-155.03186657,0.000168,2]
[403024095,1769080231821,-150.0,0.00016822,2]
[403024096,1769080231831,-500.0,0.00016822,2]
[403024097,1769080231840,-150.0,0.00016822,2]
[403024098,1769080231850,-150.0,0.00016822,2]
[403024099,1769080231859,-500.0,0.00016822,2]
[403024100,1769080231868,-279.80866145,0.00016877,2]
[403024101,1769080231878,-162.0,0.00016877,2]
[403024102,1769080231887,-200.0,0.00016877,2]
[403024104,1769080231896,-207.32438751,0.00016877,2]
[403024106,1769080231906,-150.0,0.00016877,2]
[403024108,1769080231915,-300.0,0.00016896,2]
[403024110,1769080231924,-1200.0,0.00016896,2]
[403024112,1769080231933,-21318.94929026,0.00016897,2]
[403024115,1769080231952,-21375.22142401,0.00016897,2]
[403024117,1769080231963,-395.00000005,0.00016897,2]
[403024122,1769080232000,-589.68154739,0.00016897,2]
[403024124,1769080232011,-1388.91954942,0.00016897,2]
[403024126,1769080232021,-2345.02498503,0.00016897,2]
[403024128,1769080232032,-3484.98706251,0.00016897,2]
[403024131,1769080232054,-2255.84924183,0.00016897,2]
[403024133,1769080232066,-999.0,0.00016897,2]
[403024177,1769080237738,-588.0,0.00016897,2]
[403024178,1769080237752,-825.89185212,0.00016897,2]
[403024179,1769080237811,-944433.47504738,0.00016897,2]
[403024180,1769080237820,-1800.0,0.000169,6]
[403024181,1769080237830,-457.22,0.000169,2]
[403024182,1769080237840,-300.0,0.00016937,2]
[403024183,1769080237849,-150.0,0.00016938,2]
[403024184,1769080237859,-150.0,0.00016938,2]
[403024185,1769080237870,-150.0,0.00016938,2]
[403024186,1769080237880,-1656.655,0.00016942,2]
[403024187,1769080237891,-9207.94484488,0.00016942,2]
[403024188,1769080237900,-202.55257862,0.00016942,2]
[403024189,1769080237909,-211.68961379,0.00016993,2]
[403024190,1769080237919,-150.0,0.00016993,2]
[403024191,1769080237929,-364.96851402,0.00016997,2]
[403024192,1769080237939,-151.0,0.00017032,2]
[403024193,1769080237948,-151.0,0.00017032,2]
[403024194,1769080237958,-151.0,0.00017032,2]
[403024195,1769080237968,-151.0,0.00017032,2]
[403024196,1769080237978,-151.0,0.00017032,2]
[403024197,1769080237988,-151.0,0.00017032,2]
[403024199,1769080237997,-151.0,0.00017032,2]
[403024201,1769080238007,-151.0,0.00017032,2]
[403024203,1769080238016,-500.0,0.00017041,2]
[403024205,1769080238025,-500.0,0.00017041,2]
[403024207,1769080238035,-500.0,0.00017041,2]
[403024208,1769080238045,-500.0,0.00017041,2]
[403024210,1769080238054,-500.0,0.00017041,2]
[403024212,1769080238064,-500.0,0.00017041,2]
[403024214,1769080238074,-500.0,0.00017041,2]
[403024216,1769080238084,-500.0,0.00017041,2]
[403024218,1769080238094,-500.0,0.00017041,2]
[403024219,1769080238104,-500.0,0.00017041,2]
[403024220,1769080238113,-500.0,0.00017041,2]
[403024221,1769080238122,-500.0,0.00017041,2]
[403024222,1769080238132,-637.4504776,0.00017041,2]
[403024223,1769080238143,-500.0,0.00017041,2]